Cogmind - Beta 12 X1 @@@ ROGUE MODE // 2022.07.29 @ 21:46:30 Player: Nalzok Result: Destroyed by G-73 Enforcer with Phase Gun Performance ------------- Evolutions (9) 4500 Regions Visited (19) 3800 Robots Destroyed (65) 325 Value Destroyed (2424) 2424 Prototype IDs (40) 800 Alien Tech Used (2) 400 Bonus (706) 706 TOTAL SCORE: 12955 Bonus ------- Follower Combat Kills 132 Aligned with FarCom 300 Met Zhirov 300 Friendly Fire -26 Cogmind --------- Core Integrity 0/1600 Matter 191/300 Energy 100/100 System Corruption 1% Temperature Cool (9) Movement Core (50) Location -1/Access Parts ------- > --- POWER (2) -------- (None) > --- PROPULSION (4) --- Advanced Myomer Leg > --- UTILITY (17) ----- Advanced Signal Interpreter Advanced Salvage Targeting Computer > --- WEAPON (2) ------- (None) > --- INVENTORY (5) ---- Micro Fission Core Light Quantum Reactor Advanced Heavy Treads Transmission Jammer Peak State ------------ > --- POWER ------------ Micro Fission Core Light Quantum Reactor > --- PROPULSION ------- Impulse Thruster Array Impulse Thruster Array > --- UTILITY ---------- Energy Well Advanced Signal Interpreter Improved Terrain Scanner Advanced Salvage Targeting Computer Melee Analysis Suite Improved Target Analyzer Advanced System Shield Advanced Corruption Screen Advanced Corruption Screen > --- WEAPON ----------- Enhanced Coil Gun Point Singularity Launcher > --- INVENTORY -------- Micro Fission Core Q-thruster Q-thruster Q-thruster Transmission Jammer [Rating: 116] Favorites ----------- Power Cold Fusion Reactor Engine Ion Engine Power Core Light Nuclear Core Reactor Cold Fusion Reactor Propulsion Armored Treads Treads Armored Treads Leg Aluminum Leg Wheel Compact Wheel Hover Unit Antigrav System Flight Unit Flying Fortress v7 Utility High-capacity Storage Unit Device Improved Heat Sink Storage High-capacity Storage Unit Processor Improved Melee Analysis Suite Hackware Advanced System Shield Protection Utility Shielding Weapon Assault Cannon Energy Gun Cooled Pulse Rifle Energy Cannon Matter Neutralizer Ballistic Gun Assault Rifle Ballistic Cannon Assault Cannon Launcher Mini Smartbomb Launcher Slashing Weapon Chainsword Piercing Weapon Lance Build | -11 -10 -10 -9 -9 -9 -8 -8 -7 -6 -5 -5 -5 -5 -4 -4 -3 -3 -2 -1 ------- Run | Scr Mat Min Mat Min Exi Min Mat Fac Fac Fac Upp Upp Zhi Pro Fac Res Arm Res Acc Slots Evolved 18 | . . . 2 . . . 2 2 2 2 . . . . 2 2 . 2 2 Power 1 | . . . . . . . . 1 . . . . . . . . . . . Propulsion 2 | . . . . . . . 2 . . . . . . . . . . . . Utility 15 | . . . 2 . . . . 1 2 2 . . . . 2 2 . 2 2 Weapon . | . . . . . . . . . . . . . . . . . . . . Parts Attached 136 | . 6 . 13 1 2 6 20 4 8 10 . 1 6 16 8 13 5 12 5 Power 22 | . 2 . . 1 . 1 7 2 2 1 . . 2 1 . 2 . 1 . Engine 12 | . 2 . . 1 . . 4 2 . 1 . . 1 1 . . . . . Core 6 | . . . . . . 1 3 . . . . . . . . 2 . . . Reactor 4 | . . . . . . . . . 2 . . . 1 . . . . 1 . Propulsion 34 | . 2 . 3 . . . 4 . . . . . . 4 6 5 1 6 3 Treads 8 | . . . 2 . . . 2 . . . . . . 1 . 1 . . 2 Leg 7 | . 2 . 1 . . . . . . . . . . 3 . . . . 1 Wheel 1 | . . . . . . . 1 . . . . . . . . . . . . Hover 7 | . . . . . . . . . . . . . . . 5 2 . . . Flight 11 | . . . . . . . 1 . . . . . . . 1 2 1 6 . Utility 49 | . 2 . 6 . . 2 4 1 4 8 . . 3 6 . 3 4 4 2 Device 17 | . 1 . 1 . . 2 1 1 3 2 . . 2 1 . . 2 1 . Storage 3 | . . . 2 . . . . . . . . . . . . . . 1 . Processor 17 | . . . 2 . . . . . . 3 . . . 3 . 3 2 2 2 Hackware 8 | . . . . . . . 2 . 1 3 . . . 2 . . . . . Protection 4 | . 1 . 1 . . . 1 . . . . . 1 . . . . . . Artifact . | . . . . . . . . . . . . . . . . . . . . Weapon 31 | . . . 4 . 2 3 5 1 2 1 . 1 1 5 2 3 . 1 . Energy Gun 6 | . . . . . . . 3 1 . . . . . 1 . 1 . . . Energy Cannon 5 | . . . . . 1 1 1 . . . . . . 2 . . . . . Ballistic Gun 4 | . . . 2 . . . 1 . . . . . . . . 1 . . . Ballistic Cannon 9 | . . . 2 . 1 2 . . 1 . . . 1 1 1 . . . . Launcher 5 | . . . . . . . . . . 1 . 1 . 1 . 1 . 1 . Special Weapon . | . . . . . . . . . . . . . . . . . . . . Impact Weapon . | . . . . . . . . . . . . . . . . . . . . Slashing Weapon 1 | . . . . . . . . . 1 . . . . . . . . . . Piercing Weapon 1 | . . . . . . . . . . . . . . . 1 . . . . Special Melee Weapon . | . . . . . . . . . . . . . . . . . . . . Unidentified Prototypes 19 | . . . . . 1 . 1 2 1 1 . . 4 . 1 4 2 1 1 Corrupted Parts 1 | . . . . . . . . . . . . . . 1 . . . . . System Corruption 1 | . . . . . . . . . . . . . . 1 . . . . . Parts Lost 71 | . 1 . 1 . . . 14 . 3 . . . . 13 4 10 3 15 7 Power 11 | . 1 . . . . . 4 . . . . . . 3 . . 1 2 . Propulsion 23 | . . . . . . . 5 . . . . . . 4 2 2 . 7 3 Utility 27 | . . . . . . . 2 . 3 . . . . 4 2 6 1 5 4 Weapon 10 | . . . 1 . . . 3 . . . . . . 2 . 2 1 1 . Highest Loss Streak 11 | . 1 . 1 . . . 10 . 3 . . . . 11 4 6 2 9 6 To Critical Strikes 1 | . . . . . . . . . . . . . . 1 . . . . . Average Slot Usage (%) 79 | . 87 100 96 100 100 100 90 58 62 65 76 76 75 79 55 47 50 46 27 Engine 5 | . 11 14 11 11 11 . 1 5 2 1 5 5 5 4 . . . . . Core 1 | . . . . . . 10 6 . . . . . . . . 1 4 3 . Reactor 1 | . . . . . . . . . 3 5 5 5 5 4 . . . 2 . Treads 9 | . . . 15 22 22 22 27 . . . . . . 1 . . . . 4 Leg 3 | . 28 28 6 . . . . . . . . . . 7 . . . . . Flight 2 | . . . . . . . . 7 6 5 5 5 5 1 2 1 9 7 1 Device 6 | . 4 14 6 . . 10 12 6 18 14 11 11 7 4 . . 3 3 . Storage 7 | . 14 14 11 11 11 11 9 7 6 5 5 5 5 4 . . . 2 . Processor 14 | . . . 13 22 22 22 9 . . 11 17 17 17 18 29 14 18 19 20 Hackware 5 | . . . . . . . . 15 11 11 17 17 17 17 15 10 4 3 . Protection 4 | . . . 10 11 11 . 3 7 4 . . . 2 3 . . . . . Ballistic Gun 2 | . 28 28 5 . . . . . . . . . . . . . 4 2 . Ballistic Cannon 8 | . . . 16 22 22 21 13 . . . . . . . 1 . . . . Naked Turns . | . . . . . . . . . . . . . . . . . . . . Heaviest Build 81 | 11 14 14 57 58 58 58 60 56 58 59 58 58 58 81 15 20 22 31 . Greatest Support 80 | 20 20 20 40 40 40 40 80 59 59 59 59 59 59 60 33 80 32 32 3 Greatest Overweight (x) 4 | . . . 1 1 1 1 3 . . . . . . 3 4 2 . . . Average Overweight (x) . | . . . . 1 1 1 . . . . . . . . . . . . . Largest Inventory Capacity 30 | 8 8 8 30 20 20 20 20 20 20 20 20 20 20 20 5 5 5 5 5 Average Capacity 15 | 8 8 8 16 20 20 20 20 20 20 20 20 20 20 18 5 5 5 5 5 Most Carried 20 | 6 8 8 13 16 20 20 20 20 20 20 20 20 20 20 5 5 5 5 5 Average Carried 13 | 6 6 7 8 15 17 18 19 19 19 19 20 19 19 16 4 4 4 4 3 Final Capacity 20 | 8 8 8 20 20 20 20 20 20 20 20 20 20 20 5 5 5 5 5 5 Final Carried 20 | 6 8 8 13 16 20 20 19 20 19 20 20 20 20 5 5 4 5 2 5 Class Distribution -------------------- 59% | Mutant 35% | Hacker-Mutant 4% | Scout Dominant Class ---------------- Mutant | -10/Materials Mutant | -10/Mines Mutant | -9/Materials Mutant | -9/Mines Mutant | -9/Exiles Mutant | -8/Mines Mutant | -8/Materials Hacker-Mutant | -7/Factory Hacker-Mutant | -6/Factory Hacker-Mutant | -5/Factory Hacker-Mutant | -5/Upper Caves Hacker-Mutant | -5/Upper Caves Hacker-Mutant | -5/Zhirov Hacker-Mutant | -4/Proximity Caves Hacker-Mutant | -4/Factory Hacker-Mutant | -3/Research Mutant | -3/Armory Scout | -2/Research Mutant | -1/Access Resources | -11 -10 -10 -9 -9 -9 -8 -8 -7 -6 -5 -5 -5 -5 -4 -4 -3 -3 -2 -1 ----------- Run | Scr Mat Min Mat Min Exi Min Mat Fac Fac Fac Upp Upp Zhi Pro Fac Res Arm Res Acc Matter Collected 2261 | 200 143 . 281 144 . 243 222 279 62 13 65 35 112 175 . 172 . 22 93 Remotely . | . . . . . . . . . . . . . . . . . . . . Salvage Created 2417 | . 209 . 452 110 . 172 398 46 119 99 . . 117 638 . 57 . . . Parts 107 | . 10 . 21 10 . 7 26 4 1 9 . . . 17 . 2 . . . Haulers Intercepted 5 | . . . 2 . . . 1 1 1 . . . . . . . . . . Recyclers Shooed 3 | . . . 2 . . . . . . 1 . . . . . . . . . Parts Field Recycled . | . . . . . . . . . . . . . . . . . . . . Retrieved Matter . | . . . . . . . . . . . . . . . . . . . . Parts Self-Destructed 16 | . . . . . . . . . . . 2 . . 14 . . . . . Prevented 3 | . . . . . . . . . . . 1 . . 2 . . . . . Kills | -11 -10 -10 -9 -9 -9 -8 -8 -7 -6 -5 -5 -5 -5 -4 -4 -3 -3 -2 -1 ------- Run | Scr Mat Min Mat Min Exi Min Mat Fac Fac Fac Upp Upp Zhi Pro Fac Res Arm Res Acc Combat Hostiles Destroyed 56 | . 5 . 8 6 . 6 11 . . 5 . . . 9 . 5 . 1 . Melee 1 | . . . . . . . . . . . . . . 1 . . . . . Guns 13 | . 5 . 5 . . . 1 . . . . . . 2 . . . . . Cannons 28 | . . . 3 6 . 6 10 . . . . . . 3 . . . . . AOE 13 | . . . . . . . . . . 5 . . . 2 . 5 . 1 . Classes Destroyed 12 | . 1 . 4 . . . 4 . . 1 . . . 1 . . . 1 . Worker 1 | . . . . . . . . . . 1 . . . . . . . . . Hauler 5 | . . . 2 . . . 1 1 1 . . . . . . . . . . Recycler 1 | . . . 1 . . . . . . . . . . . . . . . . Operator 1 | . . . . . . . 1 . . . . . . . . . . . . Watcher 1 | . . . . . . . 1 . . . . . . . . . . . . Swarmer 19 | . . . 1 4 . . 3 . . 5 . . . 1 . 5 . . . Grunt 27 | . 5 . 2 2 . 6 6 . . . . . . 6 . . . . . Sentry 6 | . . . 5 . . . . . . . . . . 1 . . . . . Hunter 1 | . . . . . . . 1 . . . . . . . . . . . . Programmer 1 | . . . . . . . . . . . . . . . . . . 1 . Heavy 1 | . . . . . . . 1 . . . . . . . . . . . . Behemoth 1 | . . . . . . . . . . . . . . 1 . . . . . Best Kill Streak 5 | . 2 . 3 3 . 3 3 1 1 5 . . . 3 . 5 . 1 . Combat Bots Only 5 | . 2 . 2 3 . 3 3 . . 5 . . . 3 . 5 . 1 . Max Kills in Single Turn 5 | . 1 . 1 1 . 1 1 1 1 5 . . . 1 . 2 . 1 . Gunslinging . | . . . . . . . . . . . . . . . . . . . . Exploded 5 | . . . . . . . . . . 5 . . . 1 . 2 . 1 . Melee 1 | . . . . . . . . . . . . . . 1 . . . . . Uniques/NPCs Destroyed . | . . . . . . . . . . . . . . . . . . . . Combat | -11 -10 -10 -9 -9 -9 -8 -8 -7 -6 -5 -5 -5 -5 -4 -4 -3 -3 -2 -1 -------- Run | Scr Mat Min Mat Min Exi Min Mat Fac Fac Fac Upp Upp Zhi Pro Fac Res Arm Res Acc Damage Taken 13155 | . 310 . 315 83 . 488 1909 75 340 265 75 . . 2237 340 1699 388 2352 2279 Core 4840 | . 90 . 117 . . 53 199 5 6 45 16 . . 718 114 335 81 1439 1622 Absorbed by Shields . | . . . . . . . . . . . . . . . . . . . . Redirected to Shielding 219 | . . . . . . . 26 . 26 . . . . 167 . . . . . Core Remaining (%) 65 | 100 . 64 . . . 57 63 99 99 . . . . 22 90 . 61 . . Volleys Fired 181 | . 22 . 34 7 . 19 49 2 8 1 . . . 31 . 4 3 1 . Largest 2 | . 2 . 2 2 . 2 2 1 1 1 . . . 2 . 1 2 2 . Hottest 193 | . 40 . 88 88 . 88 133 20 20 80 . . . 193 . 80 90 85 . Shots Fired 319 | . 44 . 60 14 . 33 92 2 8 1 . . . 55 . 5 3 2 . Gun 147 | . 44 . 36 . . . 26 2 8 . . . . 26 . 1 3 1 . Cannon 163 | . . . 24 14 . 33 66 . . . . . . 26 . . . . . Launcher 9 | . . . . . . . . . . 1 . . . 3 . 4 . 1 . Special . | . . . . . . . . . . . . . . . . . . . . Kinetic 222 | . 44 . 60 14 . 29 68 . . . . . . 3 . . 3 1 . Thermal 87 | . . . . . . 4 24 2 8 . . . . 49 . . . . . Explosive 9 | . . . . . . . . . . 1 . . . 3 . 4 . 1 . Electromagnetic 1 | . . . . . . . . . . . . . . . . 1 . . . Robot Hit Streak 15 | . 7 . 7 5 . 15 13 6 12 13 . . . 14 . 13 15 1 . Robot Miss Streak 4 | . 4 . 4 3 . 2 3 . . . . . . 2 . . . 1 . Penetration Max . | . . . . . . . . . . . . . . . . . . . . Secondary Targets . | . . . . . . . . . . . . . . . . . . . . Shots Hit Robots 245 | . 29 . 36 8 . 27 72 1 6 8 . . 7 46 . 2 2 1 . Core Hits 115 | . 12 . 19 6 . 14 24 1 1 8 . . 1 18 . 7 . 3 1 Critical Kills 1 | . . . . . . . . . . . . . . 1 . . . . . Critical Parts Destroyed . | . . . . . . . . . . . . . . . . . . . . Critical Strikes 6 | . . . 1 . . 1 1 . 1 . . . . 2 . . . . . Burn 1 | . . . . . . . . . 1 . . . . . . . . . . Meltdown 1 | . . . . . . . . . . . . . . 1 . . . . . Blast 3 | . . . 1 . . 1 1 . . . . . . . . . . . . Sever 1 | . . . . . . . . . . . . . . 1 . . . . . Melee Attacks 73 | . . . . . . . . . 7 22 . . 7 8 5 24 . . . Impact . | . . . . . . . . . . . . . . . . . . . . Slashing 44 | . . . . . . . . . 7 22 . . 7 8 . . . . . Piercing 29 | . . . . . . . . . . . . . . . 5 24 . . . Sneak Attacks 3 | . . . . . . . . . . 3 . . . . . . . . . Combat Hostiles . | . . . . . . . . . . . . . . . . . . . . Follow-up Attacks . | . . . . . . . . . . . . . . . . . . . . Damage Inflicted 7728 | . 279 . 641 217 . 664 1489 18 115 842 . . 553 1852 . 713 84 231 30 Guns 1748 | . 279 . 284 . . . 364 18 115 . . . . 583 . 21 84 . . Cannons 3174 | . . . 357 217 . 664 1125 . . . . . . 811 . . . . . Explosions 1574 | . . . . . . . . . . 436 . . . 230 . 691 . 217 . Melee 1185 | . . . . . . . . . . 406 . . 553 226 . . . . . Ramming 47 | . . . . . . . . . . . . . . 2 . 1 . 14 30 Kinetic 2993 | . 279 . 641 217 . 582 1087 . . . . . . 103 . . 84 . . Thermal 1908 | . . . . . . 82 402 18 115 . . . . 1291 . . . . . Explosive 1574 | . . . . . . . . . . 436 . . . 230 . 691 . 217 . Electromagnetic 21 | . . . . . . . . . . . . . . . . 21 . . . Impact . | . . . . . . . . . . . . . . . . . . . . Slashing 1185 | . . . . . . . . . . 406 . . 553 226 . . . . . Piercing . | . . . . . . . . . . . . . . . . . . . . Highest Corruption 19 | . . . 2 2 2 2 . . 2 . . . . 1 . 19 19 . 1 Average Corruption 3 | . . . 2 2 2 2 . . 2 . . . . 1 . 16 19 . 1 Corruption Purged . | . . . . . . . . . . . . . . . . . . . . Corruption Blocked 12 | . . . . . . . . . . . . . . . . . 2 10 . Effects 54 | . . . 4 3 6 10 . . 3 . . . . 4 . 11 13 . . Message Errors 13 | . . . 1 . 2 4 . . 1 . . . . . . 2 3 . . Matter Fused 14 | . . . . 2 1 3 . . 1 . . . . 2 . 2 3 . . Heat Flow Errors 3 | . . . . . 1 1 . . . . . . . . . . 1 . . Energy Discharges 2 | . . . 1 . 1 . . . . . . . . . . . . . . Parts Rejected 2 | . . . . . . . . . . . . . . . . 1 1 . . Data Loss (minor) 6 | . . . 1 1 . 1 . . 1 . . . . 2 . . . . . Data Loss (major) 4 | . . . 1 . 1 1 . . . . . . . . . 1 . . . Misfires 1 | . . . . . . . . . . . . . . . . 1 . . . Misdirections 8 | . . . . . . . . . . . . . . . . 4 4 . . Weapon Failures 1 | . . . . . . . . . . . . . . . . . 1 . . Overload Shots . | . . . . . . . . . . . . . . . . . . . . Overflow Damage 129 | . . . . . . 10 11 . . 52 . . 36 2 . 18 . . . Projectiles 23 | . . . . . . 10 11 . . . . . . 2 . . . . . Explosions 22 | . . . . . . . . . . 4 . . . . . 18 . . . Melee 84 | . . . . . . . . . . 48 . . 36 . . . . . . Knockbacks 16 | . . . 1 1 . 7 6 . . . . . . . . . . 1 . Impact 1 | . . . . . . . . . . . . . . . . . . 1 . Kinetic 13 | . . . 1 1 . 5 6 . . . . . . . . . . . . Secondary 2 | . . . . . . 2 . . . . . . . . . . . . . Self-Inflicted Damage 21 | . . . . . . . . . . . . . . 1 . . . 6 14 Shots . | . . . . . . . . . . . . . . . . . . . . Rammed 14 | . . . . . . . . . . . . . . 1 . 1 . 4 8 Targets Rammed 14 | . . . . . . . . . . . . . . 1 . 1 . 4 8 Kicked . | . . . . . . . . . . . . . . . . . . . . Crushed . | . . . . . . . . . . . . . . . . . . . . Highest Temperature 393 | . 47 . 126 54 165 393 117 . . . . . . 239 . . 163 . . Average Temperature 87 | . 15 . 44 23 91 191 30 . . . . . . 112 . . 82 . . Received Heat Transfer 1956 | . 219 . 54 . . 324 468 36 42 18 . . . 408 93 123 . 81 90 Effects 5 | . . . . . . 3 . . . . . . . 2 . . . . . Interference 2 | . . . . . . . . . . . . . . 2 . . . . . Short Circuit 3 | . . . . . . 3 . . . . . . . . . . . . . Siege Activations . | . . . . . . . . . . . . . . . . . . . . Robots Corrupted . | . . . . . . . . . . . . . . . . . . . . Combat Hostiles . | . . . . . . . . . . . . . . . . . . . . Parts Fried 1 | . . . . . . . . . . . . . . 1 . . . . . Impact Corruptions . | . . . . . . . . . . . . . . . . . . . . Robots Melted 2 | . . . . . . . . . 1 . . . . 1 . . . . . Combat Hostiles 1 | . . . . . . . . . . . . . . 1 . . . . . Parts Melted . | . . . . . . . . . . . . . . . . . . . . Heat Transferred 2590 | . . . . . . 148 814 37 296 . . . . 1295 . . . . . Parts Sabotaged . | . . . . . . . . . . . . . . . . . . . . Parts Stolen . | . . . . . . . . . . . . . . . . . . . . Parts Stripped . | . . . . . . . . . . . . . . . . . . . . Power Chain Reactions . | . . . . . . . . . . . . . . . . . . . . Missiles Intercepted . | . . . . . . . . . . . . . . . . . . . . Alert | -11 -10 -10 -9 -9 -9 -8 -8 -7 -6 -5 -5 -5 -5 -4 -4 -3 -3 -2 -1 ------- Run | Scr Mat Min Mat Min Exi Min Mat Fac Fac Fac Upp Upp Zhi Pro Fac Res Arm Res Acc Peak Influence 328 | . 195 75 310 244 . 73 231 281 194 300 . . . . 160 248 328 234 153 Initial 171 | . . 75 29 73 . . 27 100 30 33 . . . . 44 78 129 171 148 Average 115 | . 95 75 157 158 . 39 90 104 86 142 . . . . 74 131 262 113 141 Maximum Alert Level 1 | . . . 1 1 . . 1 1 1 1 . . . . . 1 1 1 . Low Security (%) 82 | 100 100 100 67 56 . 100 97 81 99 70 . . . . 100 71 24 97 100 Level 1 17 | . . . 32 43 . . 2 18 . 29 . . . . . 28 75 2 . Level 2 . | . . . . . . . . . . . . . . . . . . . . Level 3 . | . . . . . . . . . . . . . . . . . . . . Level 4 . | . . . . . . . . . . . . . . . . . . . . Level 5 . | . . . . . . . . . . . . . . . . . . . . High Security . | . . . . . . . . . . . . . . . . . . . . Max Security . | . . . . . . . . . . . . . . . . . . . . Squads Dispatched 24 | . 2 . 1 . . . 4 3 3 2 . . . . 1 1 . 4 3 Investigation 10 | . 1 . . . . . 1 2 1 1 . . . . 1 . . 1 2 Extermination 2 | . . . . . . . . . . . . . . . . 1 . 1 . Reinforcement 12 | . 1 . 1 . . . 3 1 2 1 . . . . . . . 2 1 Assault . | . . . . . . . . . . . . . . . . . . . . Garrison . | . . . . . . . . . . . . . . . . . . . . Intercept . | . . . . . . . . . . . . . . . . . . . . Searches Triggered . | . . . . . . . . . . . . . . . . . . . . Construction Impeded . | . . . . . . . . . . . . . . . . . . . . Haulers Reinforced 2 | . . . . . . . . . . 1 . . . . . . . . 1 Active Scanning Responses . | . . . . . . . . . . . . . . . . . . . . Cargo Convoy Interrupts . | . . . . . . . . . . . . . . . . . . . . Stealth | -11 -10 -10 -9 -9 -9 -8 -8 -7 -6 -5 -5 -5 -5 -4 -4 -3 -3 -2 -1 --------- Run | Scr Mat Min Mat Min Exi Min Mat Fac Fac Fac Upp Upp Zhi Pro Fac Res Arm Res Acc Distress Signals 7 | . 2 . 1 . . . 1 . . . . . . . . . 1 2 . Communications Jammed . | . . . . . . . . . . . . . . . . . . . . Distress Signals . | . . . . . . . . . . . . . . . . . . . . Times Spotted 242 | . 9 . 14 8 . 6 27 10 17 11 8 3 . 20 9 29 15 35 21 Peak Tracking Total 21 | . 4 . 4 4 . 3 6 4 8 6 5 5 . 5 9 10 8 21 19 Tactical Retreats 38 | . 1 . . 1 . . 3 4 3 1 . 2 . 4 2 5 5 6 1 Traps | -11 -10 -10 -9 -9 -9 -8 -8 -7 -6 -5 -5 -5 -5 -4 -4 -3 -3 -2 -1 ------- Run | Scr Mat Min Mat Min Exi Min Mat Fac Fac Fac Upp Upp Zhi Pro Fac Res Arm Res Acc Traps Triggered 4 | . 1 . 1 . . . . . . . . . . . . . 1 . 1 Indirectly . | . . . . . . . . . . . . . . . . . . . . Trap Hack Attempts . | . . . . . . . . . . . . . . . . . . . . Triggered . | . . . . . . . . . . . . . . . . . . . . Disarmed 6 | . . . 6 . . . . . . . . . . . . . . . . Reprogrammed . | . . . . . . . . . . . . . . . . . . . . Reused . | . . . . . . . . . . . . . . . . . . . . Traps Extracted . | . . . . . . . . . . . . . . . . . . . . Installed 1 | . . . . . . . . . . . . 1 . . . . . . . Triggered 4 | . . . . . . . . . . . 1 . . 3 . . . . . Machines | -11 -10 -10 -9 -9 -9 -8 -8 -7 -6 -5 -5 -5 -5 -4 -4 -3 -3 -2 -1 ---------- Run | Scr Mat Min Mat Min Exi Min Mat Fac Fac Fac Upp Upp Zhi Pro Fac Res Arm Res Acc Machines Disabled 2 | . . . . . . . . . . . . . . . . 1 1 . . Max in Single Turn 1 | . . . . . . . . . . . . . . . . 1 1 . . Garrison Access 5 | . . . . . . . . 2 1 1 . . . . . . . 1 . Machines Sabotaged . | . . . . . . . . . . . . . . . . . . . . Garrisons Compromised . | . . . . . . . . . . . . . . . . . . . . Overloaded Fab Kills . | . . . . . . . . . . . . . . . . . . . . Hacking | -11 -10 -10 -9 -9 -9 -8 -8 -7 -6 -5 -5 -5 -5 -4 -4 -3 -3 -2 -1 --------- Run | Scr Mat Min Mat Min Exi Min Mat Fac Fac Fac Upp Upp Zhi Pro Fac Res Arm Res Acc Machines Accessed 52 | . . . 6 . 2 . 2 9 8 11 1 1 1 . 4 . 1 4 2 Terminals 32 | . . . 5 . . . 2 4 3 9 1 . . . 3 . 1 3 1 Fabricators 4 | . . . . . . . . 1 2 . . . . . 1 . . . . Repair Stations 1 | . . . . . . . . . . 1 . . . . . . . . . Recycling Units 1 | . . . 1 . . . . . . . . . . . . . . . . Scanalyzers 3 | . . . . . . . . 1 2 . . . . . . . . . . Garrison Access 7 | . . . . . . . . 3 1 1 . . . . . . . 1 1 Total Hacks 154 | . . . 10 . 5 . 7 18 36 43 1 1 1 . 16 . 3 9 4 Successful 79 | . . . 5 . 5 . 2 11 26 18 1 1 1 . 5 . . 4 . Failed 75 | . . . 5 . . . 5 7 10 25 . . . . 11 . 3 5 4 Catastrophic 16 | . . . 1 . . . . 1 4 5 . . . . 2 . . 1 2 Database Lockouts . | . . . . . . . . . . . . . . . . . . . . Manual 28 | . . . 5 . 1 . 4 2 . 10 . . . . 4 . . 2 . Terminals 96 | . . . 9 . . . 7 9 5 39 1 . . . 12 . 3 8 3 Fabricators 8 | . . . . . . . . 1 3 . . . . . 4 . . . . Repair Stations 2 | . . . . . . . . . . 2 . . . . . . . . . Recycling Units 1 | . . . 1 . . . . . . . . . . . . . . . . Scanalyzers 30 | . . . . . . . . 3 27 . . . . . . . . . . Garrison Access 10 | . . . . . . . . 5 1 2 . . . . . . . 1 1 Terminal Hacks 35 | . . . 3 . 5 . . 5 . 13 1 1 1 . 3 . . 3 . Record 7 | . . . . . 4 . . . . . 1 . 1 . 1 . . . . Part Schematic 6 | . . . . . . . . . . 6 . . . . . . . . . Robot Analysis 1 | . . . . . . . . . . . . . . . 1 . . . . Open Door 1 | . . . . . . . . . . . . 1 . . . . . . . Open DSF 4 | . . . . . . . . 1 . 2 . . . . 1 . . . . Level Access Points 1 | . . . . . . . . . . . . . . . . . . 1 . Branch Access Points 3 | . . . . . . . . 1 . 2 . . . . . . . . . Scanalyzer Index 1 | . . . 1 . . . . . . . . . . . . . . . . Unreport Threat 8 | . . . 1 . . . . 3 . 2 . . . . . . . 2 . Disarm Traps 1 | . . . 1 . . . . . . . . . . . . . . . . Registered Components 1 | . . . . . . . . . . 1 . . . . . . . . . EX-Prototype ID Bank 1 | . . . . . 1 . . . . . . . . . . . . . . Fabricator Hacks 4 | . . . . . . . . 1 1 . . . . . 2 . . . . Load Schematic 1 | . . . . . . . . . . . . . . . 1 . . . . Build 3 | . . . . . . . . 1 1 . . . . . 1 . . . . Repair Station Hacks 1 | . . . . . . . . . . 1 . . . . . . . . . Refit 1 | . . . . . . . . . . 1 . . . . . . . . . Recycling Unit Hacks 1 | . . . 1 . . . . . . . . . . . . . . . . Retrieve Components 1 | . . . 1 . . . . . . . . . . . . . . . . Scanalyzer 26 | . . . . . . . . 2 24 . . . . . . . . . . Insert Component 11 | . . . . . . . . 1 10 . . . . . . . . . . Analyze 15 | . . . . . . . . 1 14 . . . . . . . . . . Garrison Access Hacks 5 | . . . . . . . . 2 1 1 . . . . . . . 1 . Seal Access 5 | . . . . . . . . 2 1 1 . . . . . . . 1 . Unauthorized Hacks 7 | . . . 1 . . . 2 1 . 3 . . . . . . . . . Terminals 7 | . . . 1 . . . 2 1 . 3 . . . . . . . . . Assimilate 2 | . . . . . . . 1 . . 1 . . . . . . . . . Botnet 5 | . . . 1 . . . 1 1 . 2 . . . . . . . . . Fabricators . | . . . . . . . . . . . . . . . . . . . . Repair Stations . | . . . . . . . . . . . . . . . . . . . . Recycling Units . | . . . . . . . . . . . . . . . . . . . . Scanalyzers . | . . . . . . . . . . . . . . . . . . . . Garrison Access . | . . . . . . . . . . . . . . . . . . . . Data Cores Recovered . | . . . . . . . . . . . . . . . . . . . . Used . | . . . . . . . . . . . . . . . . . . . . Hacking Detections 34 | . . . 5 . . . 2 5 6 7 . . . . 3 . 1 3 2 Full Trace Events 8 | . . . . . . . 1 2 1 1 . . . . 1 . . 1 1 Feedback Events . | . . . . . . . . . . . . . . . . . . . . Feedback Blocked . | . . . . . . . . . . . . . . . . . . . . Robot Schematics Acquired . | . . . . . . . . . . . . . . . . . . . . Robots Built 2 | . . . . . . . . 1 1 . . . . . . . . . . Authchips . | . . . . . . . . . . . . . . . . . . . . Time 121 | . . . . . . . . 81 40 . . . . . . . . . . Total Robot Build Rating 2 | . . . . . . . . 1 1 . . . . . . . . . . Part Schematics Acquired 17 | . . . . . . . . 1 10 6 . . . . . . . . . Parts Built 2 | . . . . . . . . . . . . . . . 2 . . . . Authchips . | . . . . . . . . . . . . . . . . . . . . Time 117 | . . . . . . . . . . . . . . . 117 . . . . Total Part Build Rating 14 | . . . . . . . . . . . . . . . 14 . . . . Parts Repaired . | . . . . . . . . . . . . . . . . . . . . Time . | . . . . . . . . . . . . . . . . . . . . Parts Recycled . | . . . . . . . . . . . . . . . . . . . . Recycled Matter . | . . . . . . . . . . . . . . . . . . . . Retrieved Matter . | . . . . . . . . . . . . . . . . . . . . Retrieved Components 10 | . . . 10 . . . . . . . . . . . . . . . . Parts Scanalyzed 11 | . . . . . . . . 1 10 . . . . . . . . . . Part Schematics Acquired 11 | . . . . . . . . 1 10 . . . . . . . . . . Parts Damaged 2 | . . . . . . . . . 2 . . . . . . . . . . Bothacking | -11 -10 -10 -9 -9 -9 -8 -8 -7 -6 -5 -5 -5 -5 -4 -4 -3 -3 -2 -1 ------------ Run | Scr Mat Min Mat Min Exi Min Mat Fac Fac Fac Upp Upp Zhi Pro Fac Res Arm Res Acc Used RIF Installer . | . . . . . . . . . . . . . . . . . . . . Robots Hacked . | . . . . . . . . . . . . . . . . . . . . Non-combat . | . . . . . . . . . . . . . . . . . . . . Combat . | . . . . . . . . . . . . . . . . . . . . Robot Hacks Applied . | . . . . . . . . . . . . . . . . . . . . Relay Couplers Released . | . . . . . . . . . . . . . . . . . . . . Fabnet Peak Effective % . | . . . . . . . . . . . . . . . . . . . . Robots Rewired 1 | . . . . . . . . . . 1 . . . . . . . . . Allies Hacked . | . . . . . . . . . . . . . . . . . . . . Hacks Repelled . | . . . . . . . . . . . . . . . . . . . . Allies | -11 -10 -10 -9 -9 -9 -8 -8 -7 -6 -5 -5 -5 -5 -4 -4 -3 -3 -2 -1 -------- Run | Scr Mat Min Mat Min Exi Min Mat Fac Fac Fac Upp Upp Zhi Pro Fac Res Arm Res Acc Total Allies 7 | . . 3 . . . . . 1 1 2 . . . . . . . . . Largest Group 3 | . . 3 3 1 . . . 1 1 1 . . . . . . . . . Highest-Rated Group 42 | . . 40 40 16 . . . 10 10 42 . . . . . . . . . Highest-Rated Ally 42 | . . 16 16 16 . . . 10 10 42 . . . . . . . . . Total Orders 1 | . . . . . . . . . 1 . . . . . . . . . . TUNNEL 1 | . . . . . . . . . 1 . . . . . . . . . . Ally Attacks 47 | . . . 34 7 . . . . . 6 . . . . . . . . . Total Damage 554 | . . . 368 80 . . . . . 106 . . . . . . . . . Kills 7 | . . . 5 1 . . . . . 1 . . . . . . . . . Allies Corrupted . | . . . . . . . . . . . . . . . . . . . . Allies Melted . | . . . . . . . . . . . . . . . . . . . . Intel | -11 -10 -10 -9 -9 -9 -8 -8 -7 -6 -5 -5 -5 -5 -4 -4 -3 -3 -2 -1 ------- Run | Scr Mat Min Mat Min Exi Min Mat Fac Fac Fac Upp Upp Zhi Pro Fac Res Arm Res Acc Robot Analysis Total 1 | . . . . . . . . . . . . . . . 1 . . . . Derelict Logs Recovered 5 | . . 1 . . . . . . . . 2 1 . 1 . . . . . Drone Launches . | . . . . . . . . . . . . . . . . . . . . Drone Recoveries . | . . . . . . . . . . . . . . . . . . . . Exploration | -11 -10 -10 -9 -9 -9 -8 -8 -7 -6 -5 -5 -5 -5 -4 -4 -3 -3 -2 -1 ------------- Run | Scr Mat Min Mat Min Exi Min Mat Fac Fac Fac Upp Upp Zhi Pro Fac Res Arm Res Acc Turns Passed 7979 | 2 238 314 887 591 711 733 670 336 413 386 163 311 128 635 224 485 203 393 156 Spaces Moved 7177 | 2 124 260 372 226 283 204 260 646 711 564 326 537 187 376 278 381 365 797 278 Core 675 | . . . . . . . . . . . . . . 120 94 125 . 58 278 Treads 1104 | . . . 238 226 283 204 135 . . . . . . . . 18 . . . Legs 650 | 2 124 260 134 . . . . . . . . . . 130 . . . . . Wheels 26 | . . . . . . . 26 . . . . . . . . . . . . Hover 35 | . . . . . . . . . . . . . . . 3 32 . . . Flight 4687 | . . . . . . . 99 646 711 564 326 537 187 126 181 206 365 739 . Fastest Speed 35 | 120 120 120 120 250 250 250 50 50 50 50 50 50 50 50 40 42 42 35 50 Average Speed 86 | 120 120 120 201 250 250 250 120 50 50 50 50 50 50 107 62 52 42 42 50 Slowest Speed 260 | 120 120 120 250 250 250 250 167 50 50 50 50 50 50 260 250 160 42 50 50 Overloaded Moves . | . . . . . . . . . . . . . . . . . . . . Propulsion Burnouts . | . . . . . . . . . . . . . . . . . . . . Robots Hopped 27 | . . . . . . . 6 8 5 2 . . . . . 1 1 4 . Cave-ins Triggered 3 | . . . . . . . . . . . . . . . . 3 . . . Teleports 1 | . . . . . . . . . . . . . . . . 1 . . . Exploration Rate (%) 36 | 2 23 90 41 53 61 32 25 21 29 23 48 66 62 64 8 14 34 27 8 Regions Visited 19 Branch Regions 9 Pre-discovered Areas 3 | . . 1 . . 1 . . . . . . . . 1 . . . . . Known Exits Taken 13 | . . . 1 1 1 1 . . . 1 1 1 1 1 1 1 1 1 . Unknown Exits Taken 6 | 1 1 1 . . . . 1 1 1 . . . . . . . . . . Scrap Searched 7 | . . 1 . . . 1 . . . . 2 1 . 2 . . . . . Spaces Dug 47 | . . . . . . . . . 7 13 . . . . 5 22 . . . Terrain Destroyed 129 | . . . 5 3 . 4 3 . 7 21 . . . 38 5 35 2 6 . Melee 47 | . . . . . . . . . 7 13 . . . . 5 22 . . . Projectile 31 | . . . 5 3 . 4 3 . . . . . . 14 . . 2 . . AOE 51 | . . . . . . . . . . 8 . . . 24 . 13 . 6 . Terrain Rammed . | . . . . . . . . . . . . . . . . . . . . Walls Destroyed . | . . . . . . . . . . . . . . . . . . . . Machines Disabled . | . . . . . . . . . . . . . . . . . . . . Actions | -11 -10 -10 -9 -9 -9 -8 -8 -7 -6 -5 -5 -5 -5 -4 -4 -3 -3 -2 -1 --------- Run | Scr Mat Min Mat Min Exi Min Mat Fac Fac Fac Upp Upp Zhi Pro Fac Res Arm Res Acc Total 8493 | 1 174 263 457 239 287 394 516 647 748 634 325 581 212 534 317 618 406 847 293 Wait 772 | . 15 . 10 2 . 161 179 1 . 8 . 31 . 95 23 192 27 28 . Move 7106 | 1 123 259 371 225 282 203 248 630 701 559 325 536 186 375 277 377 362 788 278 Hop 24 | . . . . . . . 5 7 4 2 . . . . . 1 1 4 . Pick Up 65 | . 3 2 11 3 2 1 7 2 7 7 . 6 3 2 1 2 1 3 2 Fast Attach 88 | . 2 . 8 . . 1 8 3 7 9 . 1 7 7 6 10 5 9 5 Attach 26 | . 1 . 2 . . . 8 1 1 . . . . 5 1 4 . 3 . Detach 16 | . 1 . 3 . . 1 4 . 2 2 . . . 1 . 1 . 1 . Swap 24 | . 3 . 3 1 2 5 4 . . 1 . . . 4 1 . . . . Drop 83 | . 4 2 15 1 1 3 4 1 11 12 . 6 9 4 3 1 . 6 . Fire 181 | . 22 . 34 7 . 19 49 2 8 1 . . . 31 . 4 3 1 . Melee 73 | . . . . . . . . . 7 22 . . 7 8 5 24 . . . Ram 13 | . . . . . . . . . . . . . . 1 . . . 4 8 Kick . | . . . . . . . . . . . . . . . . . . . . Crush . | . . . . . . . . . . . . . . . . . . . . Escape Stasis 9 | . . . . . . . . . . . . . . . . 2 7 . . Rewire 12 | . . . . . . . . . . 11 . . . 1 . . . . . Trap 1 | . . . . . . . . . . . . 1 . . . . . . . Miscellaneous . | . . . . . . . . . . . . . . . . . . . . Route ------- -11/Scrapyard -10/Materials -10/Mines -9/Materials (discovered 2 exits: *Min / [*Sto]) -9/Mines (discovered 2 exits: *Mat / *Exi) -9/Exiles (discovered 2 exits: *Min x2) -8/Mines -8/Materials -7/Factory (discovered 3 exits: *Fac / *Low x2) -6/Factory -5/Factory (discovered 2 exits: *Upp x2) -5/Upper Caves -5/Upper Caves -5/Zhirov -4/Proximity Caves -4/Factory -3/Research (discovered 2 exits: *Res / *Arm) -3/Armory -2/Research (discovered 3 exits: *Acc x3) -1/Access History --------- Turn | Location | Event 1 | -11/Scrapyard | Discovered new exit (range 1) 3 | -11/Scrapyard | Entered Materials 221 | -10/Materials | Discovered new exit (range 15) 241 | -10/Materials | Entered Mines 262 | -10/Mines | Assisted by bots powering up and referring to "LRC-V3" 300 | -10/Mines | Build established: Mutant 414 | -10/Mines | Learned location of Zion (-7) 532 | -10/Mines | Discovered new exit (range 16) 541 | -10/Mines | Received a Rocket Launcher from a helpful Derelict 555 | -10/Mines | Entered Materials 555 | -9/Materials | Accompanied by 3 allies 555 | -9/Materials | Evolved 2 slots: Utility x2 632 | -9/Materials | Discovered new exit (range 16) 1211 | -9/Materials | Discovered new exit (range 9) 1439 | -9/Materials | Identified exit to Mines 1442 | -9/Materials | Entered Mines 1442 | -9/Mines | Accompanied by 1 ally 1465 | -9/Mines | Discovered new exit (range 11) 2023 | -9/Mines | Deemed a non-threat by the Exiles lab entrance 2023 | -9/Mines | Discovered new exit (range 5) 2030 | -9/Mines | Identified exit to Exiles 2033 | -9/Mines | Entered Exiles 2066 | -9/Exiles | Discovered new exit (range 15) 2098 | -9/Exiles | Met 8R-AWN 2138 | -9/Exiles | Met EX-HEX 2203 | -9/Exiles | Met EX-BIN 2381 | -9/Exiles | Aligned with FarCom system 2383 | -9/Exiles | Given EX-Vault access code 2441 | -9/Exiles | Opened EX-Vault 2456 | -9/Exiles | Found Flying Fortress v7 2509 | -9/Exiles | Warned to stay clear of 0b10 Research branches 2579 | -9/Exiles | Met EX-DEC 2724 | -9/Exiles | Discovered new exit (range 10) 2741 | -9/Exiles | Identified exit to Mines 2744 | -9/Exiles | Left Exiles lab with Flying Fortress v7 2744 | -9/Exiles | Entered Mines 3222 | -8/Mines | Discovered new exit (range 11) 3474 | -8/Mines | Identified exit to Materials 3477 | -8/Mines | Entered Materials 3477 | -8/Materials | Evolved 2 slots: Propulsion x2 4040 | -8/Materials | Lost 10 parts (3p4n3w) 4124 | -8/Materials | Discovered new exit (range 14) 4147 | -8/Materials | Entered Factory 4147 | -7/Factory | Evolved 2 slots: Power x1, Utility x1 4159 | -7/Factory | Identified exit to Lower Caves 4390 | -7/Factory | Build established: Hacker-Mutant 4448 | -7/Factory | Fabricated A-02 Transporter? 4477 | -7/Factory | Discovered new exit (range 11) 4483 | -7/Factory | Entered another Factory area 4483 | -6/Factory | Evolved 2 slots: Utility x2 4750 | -6/Factory | Fabricated T-07 Excavator (x1) 4860 | -6/Factory | Lost 3 parts (3u) 4887 | -6/Factory | Discovered new exit (range 15) 4896 | -6/Factory | Entered another Factory area 4896 | -5/Factory | Evolved 2 slots: Utility x2 5029 | -5/Factory | Found Prototype Launcher 5029 | -5/Factory | Identified Mni. Smartbomb Launcher 5145 | -5/Factory | Identified exit to Upper Caves 5282 | -5/Factory | Entered Upper Caves 5349 | -5/Upper Caves | Discovered new exit (range 13) 5383 | -5/Upper Caves | Learned Factory terminal intel 5402 | -5/Upper Caves | Learned Factory emergency access door positions 5445 | -5/Upper Caves | Identified exit to Upper Caves 5445 | -5/Upper Caves | Entered another Upper Caves area 5447 | -5/Upper Caves | Spotted B-75 Beast 5702 | -5/Upper Caves | Discovered new exit (range 2) 5702 | -5/Upper Caves | Identified exit to Zhirov 5756 | -5/Upper Caves | Entered Zhirov 5756 | -5/Zhirov | Discovered new exit (range 3) 5766 | -5/Zhirov | Met Zhirov 5785 | -5/Zhirov | Zhirov requested help retrieving the SGEMP Prototype 5794 | -5/Zhirov | Found Alien Artifact 5794 | -5/Zhirov | Identified Integrated Dissipator 5794 | -5/Zhirov | Installed Integrated Dissipator, increased core heat dissipation (+20) 5863 | -5/Zhirov | Found Alien Artifact 5884 | -5/Zhirov | Identified exit to Proximity Caves 5884 | -5/Zhirov | Entered Proximity Caves 6213 | -4/Proximity Caves | Attracted the attention of an 0b10 checkpoint 6395 | -4/Proximity Caves | Spotted B-86 Titan 6439 | -4/Proximity Caves | Destroyed B-86 Titan 6446 | -4/Proximity Caves | Core integrity fell below 50% 6489 | -4/Proximity Caves | Lost 11 parts (2p3n4u2w) 6511 | -4/Proximity Caves | Discovered new exit (range 7) 6518 | -4/Proximity Caves | Identified exit to Factory 6519 | -4/Proximity Caves | Entered Factory 6519 | -4/Factory | Evolved 2 slots: Utility x2 6521 | -4/Factory | Loaded intel: 28 terminal locations 6727 | -4/Factory | Fabricated Field Propulsion Array? 6736 | -4/Factory | Discovered new exit (range 14) 6742 | -4/Factory | Identified exit to Research 6743 | -4/Factory | Entered Research 6743 | -3/Research | Evolved 2 slots: Utility x2 6744 | -3/Research | Identified exit to Armory 6771 | -3/Research | Lost 4 parts (2n2u) 7054 | -3/Research | Crushed by falling debris 7085 | -3/Research | Lost 3 parts (2u1w) 7091 | -3/Research | Crushed by falling debris 7092 | -3/Research | System corruption reached 10% 7112 | -3/Research | Crushed by falling debris 7114 | -3/Research | Identified Transdimensional Reconstructor 7114 | -3/Research | Warped through subspace 7144 | -3/Research | Lost 6 parts (2n3u1w) 7156 | -3/Research | Spotted B-86 Titan 7200 | -3/Research | Discovered new exit (range 7) 7202 | -3/Research | Identified exit to Research 7228 | -3/Research | Entered Armory 7322 | -3/Armory | Found Prototype Processor 7322 | -3/Armory | Identified Exp. Target Analyzer 7324 | -3/Armory | Found Prototype Device 7324 | -3/Armory | Identified Adv. Kinecellerator 7326 | -3/Armory | Found Adv. Kinecellerator 7430 | -3/Armory | Discovered exit to Research (range 4) 7431 | -3/Armory | Entered Research 7431 | -2/Research | Evolved 2 slots: Utility x2 7590 | -2/Research | Spotted B-90 Cyclops 7663 | -2/Research | Build established: Scout 7711 | -2/Research | Found Prototype Launcher 7711 | -2/Research | Identified Point Singularity Launcher 7770 | -2/Research | Lost 9 parts (1p4n3u1w) 7770 | -2/Research | Identified exit to Access 7795 | -2/Research | Core integrity fell below 50% 7816 | -2/Research | Core integrity fell below 20% 7824 | -2/Research | Entered Access 7824 | -1/Access | Evolved 2 slots: Utility x2 7851 | -1/Access | Lost 6 parts (1p3n2u) 7962 | -1/Access | Core integrity fell below 50% 7968 | -1/Access | Core integrity fell below 20% 7980 | -1/Access | Destroyed by G-73 Enforcer with Phase Gun Last Messages --------------- 07959_ K-01 Serf collects debris. 07961_ Penetrated by Slug. 07962_ Slug penetrates G-73 Enforcer. 07962_ Acquired 93 matter. 07963_ K-01 Serf collects debris. 07963_ Critical hit (Burn: +37). 07964_ Penetrated by Slug. 07966_ K-01 Serf destroyed. 07966_ Penetrated by Slug. 07966_ Slug penetrates Wall. 07969_ Imp. Target Analyzer destroyed. 07975_ Acquired Prototype Leg. 07975_ Identified Adv. Myomer Leg. 07977_ Slammed into A-15 Conveyor. 07977_ A-15 Conveyor calls for reinforcements. 07977_ ALERT: Hostile activity reported, dispatching reinforcements to area. 07979_ Slammed into G-73 Enforcer. 07979_ Destabilizing: System corrupted (+1). 07980_ Slammed into G-73 Enforcer. Map ----- +----------------------------------------------------+ | ?????????????????????????????????????????????????? | | ?????????????????????????????????????????????????? | | ?????????????????????????????????????????????????? | | ?????????????????????????????????????????????????? | | ?????????????????????????????????????????????????? | | ?????????????????????????????????????????????????? | | ?????????????????????????????????????????????????? | | ?????????????????????????????????????????????????? | | ??????????????????????????????????????????? ? | | ??????????????????????????????????????????? | | ??????????????????????????????????????????# | | ??????????????????????????????????????????# | | ??????????????????????????????????????????# | | ??????????????????????????????????????????# | | ??????????????????????????????????????????# | | ??????????????????????????????????????????# | | ?????????????????????????????############## | | ?????????????????????????????# # | | ?????????????????????????????# # | | ?????????????????????????????# # | | ?????????????????????????????# # | | ?????????????????????????????# # | | ?????????????????????????????# ! s ss / | | ?????????????????????????????# s " # | | ?????????????????#############ss """" # | | ?????????? p g@ ss """"" # | | ?????????????????############# """"" ###### # | | ?????????????????????????????# """" #????# # | | ?????????????????????????????# " #????# # | | ?????????????????????????????##############????# # | | ???????????????????????????????????????????????# # | | ???????????????????????????????????????????????# # | | ???????????????????????????????????????????????# # | | ???????????????????????????????????????????????? ? | | ???????????????????????????????????????????????? ? | | ???????????????????????????????????????????????? ? | | ???????????????????????????????????????????????? ? | | ???????????????????????????????????????????????? ? | | ???????????????????????????????????????????????? ? | | ???????????????????????????????????????????????? ? | | ?????????????????????????????????????????????????? | | ?????????????????????????????????????????????????? | | ?????????????????????????????????????????????????? | | ?????????????????????????????????????????????????? | | ?????????????????????????????????????????????????? | | ?????????????????????????????????????????????????? | | ?????????????????????????????????????????????????? | | ?????????????????????????????????????????????????? | | ?????????????????????????????????????????????????? | | ?????????????????????????????????????????????????? | +----------------------------------------------------+ Best States ------------- Heat Dissipation 79 Energy Generation 35 Energy Capacity 590 Matter Stores 300 Matter Capacity 300 Sight Range 16 Terrain Scan Range 16 Terrain Scan Density 10 Additional Mass Support 9 Corruption Containment 8 Corruption Block 40 Utility Shielding 33 Weapon Shielding 90 Point Defense Rating 80 Evasion (%) 68 Targeting Accuracy 8 Melee Accuracy 16 Target Analysis 10 Recoil Reduction 4 Particle Charging 30 Kinecelleration 50 Salvage Targeting 3 Offensive Hacking 20 Defensive Hacking 28 Item Schematics ----------------- Cargo Storage Unit | -7/Factory | Scanalyzed Huge Storage Unit | -6/Factory | Scanalyzed Arm. Leg | -6/Factory | Scanalyzed Adv. Weight Redist. System | -6/Factory | Scanalyzed Chainsword | -6/Factory | Scanalyzed Magnetic Acceleration Cannon | -6/Factory | Scanalyzed Adv. Signal Interpreter | -6/Factory | Scanalyzed Arm. Treads | -6/Factory | Scanalyzed Adv. Targeting Computer | -6/Factory | Scanalyzed Transmission Jammer | -6/Factory | Scanalyzed Adv. Beam Cannon | -6/Factory | Scanalyzed Adv. Drone Bay | -5/Factory | Hacked Imp. Heavy Treads | -5/Factory | Hacked Field Propulsion Array | -5/Factory | Hacked Field Propulsion Drive | -5/Factory | Hacked Linear Accelerator | -5/Factory | Hacked Adv. Focal Shield | -5/Factory | Hacked Robot Schematics ------------------ None Fabricated ------------ A-02 Transporter | x1 | -7/Factory | Preloaded T-07 Excavator | x1 | -6/Factory | Preloaded Field Propulsion Array | x2 | -4/Factory Alien Tech Used ----------------- Integrated Dissipator Transdimensional Reconstructor Achievements -------------- None Challenges ------------ None Game ------ Seed SiegeGravityKatana Manual? 0 Play Time 01:56:34 Cumulative 344.6 hours Start 2022.07.21 @ 12:16:01 End 2022.07.29 @ 21:46:30 Sessions 5 Manual Loads 0 Difficulty Rogue Special Mode None Game No. 477 Rogue 476 Adventurer 0 Explorer 1 Win Type - Total 2 Types 2/0/0/0/0/0/0/0/0 Lore% 68 Gallery% 81 Achievement% 61 Wizard Run 0 Options --------- ASCII 1 Keyboard 1 Movement Vi Keybinds 0 Fullscreen 2 Font 12/Tallcaps Map View 76x56 Tactical HUD 1 Map Filters NONE Filters LOW_CONTRAST(13,24,33) Steam 0 RUN: a854236b-1671-4e11-a1e2-18f614ce0519